bitfinex-derivatives/quotes_BNBF0:USTF0_20250130
["timestamp","ask_amount","ask_price","bid_price","bid_amount"]
[1738225852901,1.10605108,677.59,676.74,0.29553447]
[1738225853100,0.27136193,677.58,676.74,0.29553447]
[1738225855707,1.37741301,677.58,676.74,0.29553447]
[1738225855901,0.27136193,677.57,676.74,0.29553447]
[1738225858711,1.10605108,677.48,676.74,0.29553447]
[1738225862414,1.10605108,677.46,676.74,0.29553447]
[1738225866413,1.10605108,677.44,676.74,0.29553447]
[1738225869012,1.10605108,677.46,676.74,0.29553447]
[1738225875424,1.10605108,677.48,676.74,0.29553447]
[1738225882629,1.10605108,677.45,676.74,0.29553447]
[1738225885532,1.10605108,677.56,676.74,0.29553447]
[1738225888133,1.10605108,678.05,676.74,0.29553447]
[1738225888333,0.29496784,678.04,676.74,0.29553447]
[1738225894038,0.27132651,678.03,676.74,0.29553447]
[1738225894238,0.29497654,678.02,676.74,0.29553447]
[1738225894434,0.27132651,678.01,676.74,0.29553447]
[1738225894639,0.5663074,678.01,676.74,0.29553447]
[1738225894836,0.27132651,678.0,676.74,0.29553447]
[1738225895340,0.29498089,678.01,676.74,0.29553447]
[1738225896537,0.27127006,678.0,676.74,0.29553447]
[1738225897140,0.29498089,678.01,676.74,0.29553447]
[1738225897435,1.10605108,677.96,676.74,0.29553447]
[1738225898932,1.10605108,677.96,676.75,0.25784291]
[1738225899139,1.10605108,677.96,676.76,0.29552574]
[1738225899637,1.10605108,677.96,676.77,0.25784291]
[1738225899841,1.10605108,677.96,676.76,0.29552574]
[1738225900140,1.10605108,677.96,676.77,0.25781]
[1738225900744,1.10605108,677.96,676.78,0.295517]
[1738225900942,1.10605108,677.96,676.79,0.25781]
[1738225901147,0.29498089,678.01,676.8,0.29550827]
[1738225901344,0.27122852,678.0,676.8,0.29550827]
[1738225903044,0.27122852,678.0,676.81,0.25780096]
[1738225903441,0.27122852,678.0,676.82,0.29549954]
[1738225903644,0.27122852,678.0,676.83,0.25780096]
[1738225903843,0.27122852,678.0,676.84,0.29549081]
[1738225904043,0.29498089,678.01,676.84,0.29549081]
[1738225906140,0.29498089,678.01,676.85,0.2577766]
[1738225908349,0.29498089,678.01,676.86,0.29548207]
[1738225908746,0.29498089,678.01,676.87,0.25775344]
[1738225908945,0.27120485,678.0,676.88,0.29547334]
[1738225909243,0.27120485,678.0,676.89,0.25775344]
[1738225909745,0.29498089,678.01,676.9,0.29546461]
[1738225909950,0.29498089,678.01,676.91,0.25775344]
[1738225910151,0.29498089,678.01,676.92,0.29545588]
[1738225911047,1.10605108,678.26,676.93,0.25774164]
[1738225911245,0.27119917,678.25,676.94,0.29544715]
[1738225913150,0.27120105,678.24,676.94,0.29544715]
[1738225913347,0.27120105,678.25,676.94,0.29544715]
[1738225913552,0.27120105,678.24,676.94,0.29544715]
[1738225913852,1.10605108,678.27,676.94,0.29544715]
[1738225913853,0.27120105,678.23,676.94,0.29544715]
[1738225914052,0.27120105,678.26,676.94,0.29544715]
[1738225914253,0.27120105,678.25,676.94,0.29544715]
[1738225914455,0.27120105,678.26,676.94,0.29544715]
[1738225914756,0.27120105,678.25,676.94,0.29544715]
[1738225914957,0.27120105,678.26,676.94,0.29544715]
[1738225915157,0.27120105,678.25,676.94,0.29544715]
[1738225915456,0.27120105,678.24,676.94,0.29544715]
[1738225915653,0.27120105,678.23,676.94,0.29544715]
[1738225915857,0.27120105,678.22,676.94,0.29544715]
[1738225916050,0.27120105,678.21,676.94,0.29544715]
[1738225916254,0.27120105,678.26,676.94,0.29544715]
[1738225916455,0.27120105,678.25,676.94,0.29544715]
[1738225916660,0.27120105,678.26,676.94,0.29544715]
[1738225916857,0.27120105,678.25,676.94,0.29544715]
[1738225917158,0.27120105,678.24,676.94,0.29544715]
[1738225917359,1.10605108,678.23,676.94,0.29544715]
[1738225917554,0.27120105,678.22,676.94,0.29544715]
[1738225918553,0.27120105,678.22,676.95,0.25776808]
[1738225920765,1.37725213,678.22,676.94,0.29544715]
[1738225921063,0.27120105,678.21,676.94,0.29544715]
[1738225922864,0.27125761,678.2,676.94,0.29544715]
[1738225923065,0.27125761,678.21,676.94,0.29544715]
[1738225923266,0.56615587,678.2,676.94,0.29544715]
[1738225923561,0.27125761,678.19,676.94,0.29544715]
[1738225924565,1.10605108,678.14,676.94,0.29544715]
[1738225924765,0.27125761,678.13,676.94,0.29544715]
[1738225926064,1.10605108,678.14,676.94,0.29544715]
[1738225926265,0.2712586,678.13,676.94,0.29544715]
[1738225928370,1.10605108,677.94,676.94,0.29544715]
[1738225928567,0.2712586,677.93,676.94,0.29544715]
[1738225931079,1.10605108,677.94,676.94,0.29544715]
[1738225931279,0.27127235,677.93,676.94,0.29544715]
[1738225932381,1.10605108,677.81,676.94,0.29544715]
[1738225932579,0.27127235,677.8,676.94,0.29544715]
[1738225936178,1.10605108,677.78,676.94,0.29544715]
[1738225936383,0.27127103,677.77,676.94,0.29544715]
[1738225937781,0.27126347,677.76,676.94,0.29544715]
[1738225937981,0.27126347,677.77,676.94,0.29544715]
[1738225938177,0.27126208,677.76,676.94,0.29544715]
[1738225938383,0.27126208,677.75,676.94,0.29544715]
[1738225938577,0.27126208,677.77,676.94,0.29544715]
[1738225938780,1.10605108,677.78,676.94,0.29544715]
[1738225938986,0.27126286,677.77,676.94,0.29544715]
[1738225940284,0.27126286,677.82,676.94,0.29544715]
[1738225940578,0.27126286,677.81,676.94,0.29544715]
[1738225940784,0.27126286,677.8,676.94,0.29544715]
[1738225940984,1.10605108,677.83,676.94,0.29544715]
[1738225941186,0.27126557,677.82,676.94,0.29544715]
[1738225946091,0.27125882,677.81,676.94,0.29544715]
[1738225946285,0.27125882,677.8,676.94,0.29544715]
[1738225946484,0.27125882,677.82,676.94,0.29544715]
[1738225946687,0.27125882,677.81,676.94,0.29544715]
[1738225946885,0.27125894,677.8,676.94,0.29544715]
[1738225947190,0.27125894,677.79,676.94,0.29544715]
[1738225947387,0.27125894,677.82,676.94,0.29544715]
[1738225947584,1.10605108,677.83,676.94,0.29544715]
[1738225947789,0.27125613,677.82,676.94,0.29544715]
[1738225948091,1.10605108,677.83,676.94,0.29544715]
[1738225950492,1.10605108,677.92,676.94,0.29544715]
[1738225950792,0.27123025,677.91,676.94,0.29544715]
[1738225950989,1.10605108,677.92,676.94,0.29544715]
[1738225951293,0.27123334,677.91,676.94,0.29544715]
[1738225953593,1.10605108,677.86,676.94,0.29544715]
[1738225953793,0.27123334,677.85,676.94,0.29544715]
[1738225954394,0.27124717,677.84,676.94,0.29544715]
[1738225954590,1.10605108,677.86,676.94,0.29544715]
[1738225954792,0.27124716,677.85,676.94,0.29544715]
[1738225956900,1.10605108,677.81,676.94,0.29544715]
[1738225960098,1.10605108,677.8,676.94,0.29544715]
[1738225963004,1.10605108,677.78,676.94,0.29544715]
[1738225966006,1.10605108,677.77,676.94,0.29544715]
[1738225969413,1.10605108,677.78,676.94,0.29544715]
[1738225975005,1.10605108,677.86,676.94,0.29544715]
[1738225977514,0.76411635,678.17,676.94,0.29544715]
[1738225977515,1.10605108,677.85,676.94,0.29544715]
[1738225980612,0.76411635,678.17,676.94,0.29544715]
[1738225980613,1.10605108,677.84,676.94,0.29544715]
[1738225982518,0.27128789,677.83,676.94,0.29544715]
[1738225983614,0.2712886,677.82,676.94,0.29544715]
[1738225983920,0.2712886,677.81,676.94,0.29544715]
[1738225984113,0.2712886,677.83,676.94,0.29544715]
[1738225984317,0.2712886,677.82,676.94,0.29544715]
[1738225984517,0.2712886,677.83,676.94,0.29544715]
[1738225984713,0.2712886,677.82,676.94,0.29544715]
[1738225984911,0.2712886,677.81,676.94,0.29544715]
[1738225985117,0.2712886,677.83,676.94,0.29544715]
[1738225985313,0.2712886,677.82,676.94,0.29544715]
[1738225985517,0.2712886,677.83,676.94,0.29544715]
[1738225985714,0.2712886,677.81,676.94,0.29544715]
[1738225985914,0.2712886,677.8,676.94,0.29544715]
[1738225986114,0.2712886,677.79,676.94,0.29544715]
[1738225986313,0.2712886,677.78,676.94,0.29544715]
[1738225986517,0.2712886,677.77,676.94,0.29544715]
[1738225986719,0.2712886,677.83,676.94,0.29544715]
[1738225986915,0.2712886,677.82,676.94,0.29544715]
[1738225987120,1.10605108,677.74,676.94,0.29544715]
[1738225990718,0.27131797,677.73,676.94,0.29544715]
[1738225991316,1.37736905,677.73,676.94,0.29544715]
[1738225991522,1.10605108,677.73,676.94,0.29544715]
[1738225994325,0.27132211,677.72,676.94,0.29544715]
[1738225994825,1.10605108,677.73,676.94,0.29544715]
[1738225995226,1.10605108,677.69,676.94,0.29544715]
[1738225995625,1.10605108,677.69,676.72,1.54126653]
[1738225997328,0.27134102,677.68,676.72,1.54126653]
[1738225998131,1.10605108,677.69,676.58,1.10430407]
[1738225998325,0.27136324,677.67,676.64,1.54146565]
[1738225998525,0.27136324,677.66,676.64,1.54146565]
[1738225998727,0.27136324,677.68,676.64,1.54146565]
[1738225998929,1.37741432,677.67,676.64,1.54146565]
[1738225999130,0.27136324,677.66,676.64,1.54146565]
[1738225999332,1.10605108,677.67,676.64,1.54146565]
[1738226001535,1.10605108,677.93,676.64,1.54146565]
[1738226002330,0.29502006,677.92,676.64,1.54146565]
[1738226009238,0.27136362,677.91,676.64,1.54146565]
[1738226009438,0.29502876,677.9,676.64,1.54146565]
[1738226009737,0.27136362,677.89,676.64,1.54146565]
[1738226009934,0.29503746,677.88,676.64,1.54146565]
[1738226010135,0.27136362,677.87,676.64,1.54146565]
[1738226011233,1.10605108,677.8,676.64,1.54146565]
[1738226011436,0.27136362,677.79,676.64,1.54146565]
[1738226013137,0.27137833,677.78,676.64,1.54146565]
[1738226013334,0.27137833,677.77,676.64,1.54146565]
[1738226013535,0.27137833,677.76,676.64,1.54146565]
[1738226013733,0.27137833,677.75,676.64,1.54146565]
[1738226013936,0.27137833,677.74,676.64,1.54146565]
[1738226014134,0.27137833,677.79,676.64,1.54146565]
[1738226014341,0.27137833,677.78,676.64,1.54146565]
[1738226014536,0.27137833,677.79,676.64,1.54146565]
[1738226014740,0.27137833,677.78,676.25,1.10430407]
[1738226014941,0.29508535,677.77,676.26,0.55408533]
[1738226015143,0.29508535,677.77,676.27,0.55408095]
[1738226015144,0.27137833,677.76,676.27,0.55408095]
[1738226015342,0.29509406,677.75,676.28,0.55407658]
[1738226015641,0.27137833,677.74,676.29,0.55407221]
[1738226015844,0.29510276,677.73,676.3,0.55406783]
[1738226016142,0.27137833,677.72,676.31,0.25834109]
[1738226017239,0.27137833,677.72,676.32,0.295718]
[1738226017441,0.27137833,677.72,676.33,0.25834109]
[1738226017641,0.27137833,677.72,676.34,0.29570925]
[1738226017941,0.27137833,677.72,676.35,0.25834109]
[1738226018135,0.27137833,677.72,676.36,0.29570051]
[1738226019344,1.10605108,677.68,676.36,0.29570051]
[1738226019544,0.27137833,677.67,676.36,0.29570051]
[1738226023048,1.10605108,677.68,676.36,0.29570051]
[1738226023347,0.27140674,677.67,676.36,0.29570051]
[1738226024049,1.10605108,677.66,676.36,0.29570051]
[1738226024251,0.27140674,677.65,676.36,0.29570051]
[1738226024551,0.27140674,677.65,676.37,0.25830601]
[1738226024747,1.10605108,677.66,676.38,0.29569177]
[1738226024948,0.27140534,677.65,676.39,0.25830684]
[1738226025245,0.27140534,677.65,676.4,0.29568302]
[1738226025445,0.27140534,677.65,676.41,0.25830684]
[1738226026145,0.27140534,677.65,676.41,0.55398549]
[1738226026349,0.27140534,677.65,676.42,0.55398112]
[1738226026549,0.27140534,677.65,676.43,0.55397675]
[1738226026748,0.27140534,677.65,676.44,0.55397238]
[1738226026945,0.27140534,677.65,676.45,0.55396801]
[1738226027252,1.10605108,677.49,676.46,0.25830684]
[1738226027452,0.27140534,677.48,676.46,0.25830684]
[1738226028152,0.27140534,677.48,676.45,0.29566117]
[1738226028347,0.27140534,677.48,676.46,0.2582747]
[1738226029752,1.10605108,677.46,676.45,0.29566117]
[1738226029952,0.27140725,677.45,676.46,0.25826114]
[1738226033054,1.10605108,677.41,676.46,0.25826114]
[1738226033254,0.27140977,677.4,676.46,0.25826114]
[1738226034856,0.27141097,677.39,676.47,0.2582772]
[1738226035056,1.10605108,677.41,676.48,0.2582772]
[1738226035256,0.27141097,677.4,676.49,0.2582772]
[1738226035456,0.27141097,677.4,676.46,0.2582772]
[1738226035658,1.10605108,677.39,676.45,0.29566117]
[1738226035851,0.27141144,677.38,676.46,0.25827851]
[1738226036453,1.10605108,677.39,676.47,0.25828189]
[1738226036655,0.27141298,677.38,676.46,0.25828189]
[1738226036853,0.27141298,677.38,676.47,0.25828189]
[1738226037052,0.27141298,677.38,676.48,0.25828189]
[1738226037254,0.27141298,677.38,676.46,0.25828189]
[1738226037455,0.27141298,677.38,676.47,0.25828189]
[1738226037659,0.27141298,677.38,676.46,0.25828189]
[1738226037861,0.27141298,677.38,676.47,0.25828189]
[1738226038156,0.27141298,677.38,676.48,0.25828189]
[1738226038355,1.10605108,677.39,676.46,0.25828189]
[1738226038555,1.10605108,677.39,676.47,0.25828189]
[1738226038757,1.10605108,677.39,676.45,0.29566117]
[1738226038954,1.10605108,677.39,676.46,0.25827863]
[1738226039156,1.10605108,677.37,676.46,0.25827863]
[1738226041956,1.10605108,677.39,676.46,0.25827863]
[1738226044869,1.10605108,677.39,676.47,0.25827856]
[1738226045062,1.10605108,677.39,676.46,0.25827856]
[1738226045260,1.10605108,677.39,676.47,0.25827856]
[1738226045462,1.10605108,677.39,676.46,0.25827856]
[1738226045662,0.76427157,677.72,676.47,0.25827856]
[1738226045663,1.10605108,677.37,676.47,0.25827856]
[1738226045967,1.10605108,677.37,676.48,0.25827856]
[1738226046268,1.10605108,677.37,676.49,0.25827942]
[1738226046567,1.10605108,677.37,676.45,0.29566117]
[1738226046770,1.10605108,677.37,676.46,0.25828017]
[1738226049969,1.10605108,677.34,676.46,0.25828017]
[1738226050870,1.10605108,677.34,676.45,1.39996524]
[1738226052272,0.76427157,677.72,676.49,1.10430407]
[1738226052273,1.10605108,677.33,676.49,1.10430407]
[1738226055777,1.10605108,677.38,676.45,1.39996524]
[1738226058677,1.10605108,677.42,676.46,1.36251662]
[1738226058877,1.10605108,677.42,676.46,1.10430407]
[1738226060671,1.10605108,677.42,676.47,0.25822143]
[1738226061476,1.10605108,677.42,676.48,0.25821822]
[1738226061678,1.10605108,677.42,676.49,0.25821822]
[1738226061979,1.10605108,677.41,676.5,0.25821822]
[1738226062175,1.10605108,677.41,676.48,0.25821822]
[1738226062879,1.10605108,677.41,676.49,0.25820653]
[1738226063080,1.10605108,677.41,676.5,0.25821728]
[1738226063378,1.10605108,677.41,676.51,0.25821728]
[1738226063571,1.10605108,677.41,676.48,0.25821728]
[1738226063773,1.10605108,677.41,676.47,1.10430407]
[1738226063976,1.10605108,677.41,676.48,0.25821308]
[1738226064674,1.10605108,677.41,676.47,1.10430407]
[1738226064878,1.10605108,677.41,676.48,0.25821539]
[1738226065372,1.10605108,677.41,676.47,1.10430407]
[1738226065571,1.10605108,677.38,676.52,1.10430407]
[1738226069374,1.10605108,677.37,676.45,1.83749106]
[1738226072683,1.10605108,677.4,676.45,1.83749106]
[1738226076279,1.10605108,677.41,676.45,1.83749106]
[1738226078477,1.10605108,677.41,676.46,0.25821475]
[1738226078682,0.27142064,677.4,676.46,0.25821475]
[1738226080182,1.10605108,677.31,676.46,0.25821475]
[1738226083281,1.10605108,677.3,676.47,0.25822327]
[1738226083482,1.10605108,677.3,676.45,1.83749106]
[1738226083686,1.10605108,677.3,676.46,0.25821863]
[1738226084186,1.10605108,677.3,676.45,1.83749106]
[1738226086990,1.10605108,677.32,676.45,1.83749106]
[1738226090698,1.10605108,677.34,676.45,1.83749106]
[1738226093095,1.10605108,677.34,676.46,0.25825411]
[1738226093301,1.10605108,677.34,676.45,1.83749106]
[1738226093599,1.10605108,677.34,676.46,0.25826155]
[1738226094199,1.10605108,677.36,676.46,0.25826155]
[1738226097100,1.10605108,677.33,676.46,0.25826155]
[1738226098304,1.10605108,677.33,676.45,2.94179513]
[1738226098498,1.10605108,677.33,676.46,0.2582725]
[1738226099903,1.10605108,677.28,676.48,1.10430407]
[1738226102508,0.76427157,677.72,676.45,1.83749106]
[1738226102509,1.10605108,677.38,676.45,1.83749106]
[1738226106411,1.10605108,677.4,676.45,1.83749106]
[1738226109811,1.10605108,677.41,676.45,1.83749106]
[1738226110808,0.27144492,677.4,676.45,1.83749106]
[1738226113310,1.10605108,677.31,676.45,1.83749106]
[1738226114916,1.10605108,677.31,676.45,0.29566117]
[1738226115915,1.10605108,677.28,676.45,0.29566117]
[1738226119114,1.10605108,677.25,676.45,0.29566117]
[1738226122423,1.10605108,677.31,676.45,0.29566117]
[1738226125324,1.10605108,677.32,676.45,0.29566117]
[1738226126324,0.27150888,677.31,676.08,1.10430407]
[1738226126521,0.27150888,677.31,676.08,1.40012704]
[1738226127924,0.27150888,677.31,676.09,1.5425247]
[1738226128228,0.27150888,677.31,676.1,0.25862369]
[1738226128824,1.10605108,677.29,676.1,0.25862369]
[1738226129128,0.27150888,677.28,676.1,0.25862369]
[1738226130221,0.27150888,677.28,676.09,1.5425247]
[1738226130426,0.27154043,677.27,676.09,1.5425247]
[1738226130629,0.27154043,677.28,676.09,1.5425247]
[1738226130929,0.27154043,677.27,676.09,1.5425247]
[1738226131125,0.27154043,677.28,676.1,0.25866822]
[1738226131322,0.27154043,677.27,676.09,1.5425247]
[1738226131622,0.2715452,677.26,676.09,1.5425247]
[1738226131828,0.2715452,677.28,676.09,1.5425247]
[1738226132028,0.2715452,677.27,676.09,1.5425247]
[1738226132224,0.2715452,677.28,676.09,1.5425247]
[1738226132624,1.10605108,677.22,676.09,1.5425247]
[1738226132829,0.2715452,677.21,676.09,1.5425247]
[1738226135734,0.2715452,677.25,676.09,1.5425247]
[1738226137033,1.10605108,677.26,676.09,1.5425247]
[1738226137234,0.27154653,677.25,676.09,1.5425247]
[1738226139031,0.27154653,677.25,676.1,0.25874459]
[1738226139438,1.37759761,677.25,676.1,0.25874459]
[1738226139737,0.27154653,677.24,676.1,0.25874459]
[1738226142833,1.37759761,677.24,676.1,0.25874459]
[1738226143038,0.27154653,677.23,676.1,0.25874459]
[1738226145642,1.10605108,677.19,676.1,0.25874459]
[1738226145844,0.27154354,677.18,676.11,0.25875862]
[1738226146040,0.27154354,677.18,676.1,0.25875862]
[1738226146242,0.27154354,677.18,676.11,0.25875862]
[1738226146437,0.27154354,677.18,676.09,1.5425247]
[1738226146438,0.27154354,677.18,676.12,0.25875862]
[1738226146637,0.27154354,677.18,676.09,1.5425247]
[1738226146638,0.27154354,677.18,676.13,0.25875862]
[1738226146838,0.27154354,677.18,676.1,0.25875862]
[1738226147143,0.27154354,677.18,676.11,0.25875862]
[1738226147439,1.10605108,677.19,676.09,1.5425247]
[1738226147645,0.27154033,677.18,676.1,0.25873793]
[1738226152247,1.10605108,677.17,676.1,0.25873793]
[1738226152446,0.27154033,677.16,676.1,0.25873793]
[1738226156353,1.10605108,677.11,676.1,0.25873793]
[1738226156551,0.27154033,677.1,676.1,0.25873793]
[1738226157658,1.10605108,677.11,676.1,0.25873793]
[1738226159054,1.10605108,677.11,676.09,1.5425247]
[1738226159355,1.10605108,677.11,676.1,0.25862524]
[1738226159557,1.10605108,677.1,676.15,1.10430407]
[1738226159756,1.10605108,677.1,676.16,0.25862524]
[1738226162059,1.10605108,677.2,676.16,0.25862524]
[1738226165157,1.10605108,677.2,676.15,1.10430407]
[1738226165556,1.10605108,677.28,676.15,1.10430407]
[1738226166957,1.10605108,677.28,676.16,0.29578797]
[1738226169159,1.10605108,677.55,676.16,0.29578797]
[1738226173460,1.10605108,677.71,676.16,0.29578797]
[1738226173658,0.29511583,677.7,676.16,0.29578797]
[1738226173859,0.29511583,677.7,676.17,0.25830178]
[1738226174062,0.29511583,677.7,676.18,0.29577923]
[1738226174259,0.29511583,677.7,676.19,0.25830178]
[1738226174558,0.29511583,677.7,676.2,0.29577048]
[1738226174860,0.29511583,677.7,676.21,0.25830178]
[1738226175060,0.29511583,677.7,676.22,0.29576173]
[1738226176463,0.29511583,677.7,676.23,0.25825019]
[1738226176762,0.29511583,677.7,676.24,0.29575298]
[1738226190071,0.29511583,677.7,676.25,0.25814261]
[1738226190371,0.29511583,677.7,676.27,0.29573986]
[1738226200475,0.29511583,677.7,676.28,0.25807353]
[1738226200775,0.29511583,677.7,676.3,0.29572674]
[1738226204176,0.29511583,677.7,676.31,0.2580851]
[1738226204377,0.29511583,677.7,676.33,0.29571363]
[1738226204879,0.29511583,677.7,676.34,0.25808474]
[1738226205078,0.29511583,677.7,676.36,0.29570051]
[1738226205578,0.29511583,677.7,676.37,0.25808474]
[1738226205777,0.29511583,677.7,676.38,0.29569177]
[1738226205978,0.27138097,677.69,676.38,0.29569177]
[1738226207784,0.56650115,677.69,676.38,0.29569177]
[1738226207982,0.56650551,677.68,676.38,0.29569177]
[1738226208183,0.5665891,677.67,676.38,0.29569177]
[1738226208378,0.56659346,677.66,676.38,0.29569177]
[1738226208582,0.56659781,677.65,676.38,0.29569177]
[1738226208777,0.56660217,677.64,676.38,0.29569177]
[1738226208981,0.56660652,677.63,676.38,0.29569177]
[1738226209282,0.56661088,677.62,676.38,0.29569177]
[1738226209478,0.56661524,677.61,676.38,0.29569177]
[1738226209681,0.56661959,677.6,676.38,0.29569177]
[1738226209984,0.56662395,677.59,676.38,0.29569177]
[1738226210182,0.5666283,677.58,676.38,0.29569177]
[1738226210383,0.56663266,677.57,676.38,0.29569177]
[1738226210583,1.10605108,677.41,676.38,0.29569177]
[1738226210785,0.27146021,677.4,676.38,0.29569177]
[1738226213884,0.27146021,677.39,676.38,0.29569177]
[1738226214088,0.27146021,677.5,676.38,0.29569177]
[1738226214278,0.27146021,677.49,676.38,0.29569177]
[1738226214584,0.27146021,677.48,676.38,0.29569177]
[1738226214783,0.27146021,677.5,676.38,0.29569177]
[1738226214984,0.27147386,677.49,676.38,0.29569177]
[1738226215285,0.27147386,677.48,676.38,0.29569177]
[1738226215586,0.27147386,677.47,676.38,0.29569177]
[1738226215782,0.27147386,677.5,676.38,0.29569177]
[1738226215985,0.27147386,677.49,676.38,0.29569177]
[1738226216188,0.27147386,677.5,676.38,0.29569177]
[1738226216382,0.27147386,677.49,676.38,0.29569177]
[1738226216585,0.29517681,677.56,676.38,0.29569177]
[1738226216586,0.27147914,677.48,676.38,0.29569177]
[1738226216890,0.27147914,677.47,676.38,0.29569177]
[1738226217085,0.27147914,677.55,676.38,0.29569177]
[1738226217283,0.56666466,677.54,676.38,0.29569177]
[1738226217488,0.27147914,677.53,676.38,0.29569177]
[1738226222786,0.27146473,677.52,676.38,0.29569177]
[1738226222988,0.27146473,677.51,676.38,0.29569177]
[1738226223289,0.27146473,677.5,676.38,0.29569177]
[1738226223488,0.27146473,677.53,676.38,0.29569177]
[1738226223693,0.29518552,677.54,676.38,0.29569177]
[1738226223694,0.27146473,677.52,676.38,0.29569177]
[1738226223993,0.27146473,677.51,676.38,0.29569177]
[1738226224189,0.27146473,677.53,676.38,0.29569177]
[1738226224390,0.27146473,677.52,676.38,0.29569177]
[1738226224591,0.27146473,677.53,676.38,0.29569177]
[1738226224785,0.27146473,677.52,676.38,0.29569177]
[1738226224987,0.27146473,677.51,676.38,0.29569177]
[1738226225189,0.27146473,677.5,676.38,0.29569177]
[1738226225393,0.27146473,677.49,676.38,0.29569177]
[1738226225594,0.27146473,677.48,676.38,0.29569177]
[1738226225792,0.27146473,677.47,676.38,0.29569177]
[1738226225993,0.27146473,677.46,676.38,0.29569177]
[1738226226195,0.27146473,677.53,676.38,0.29569177]
[1738226229391,0.29518552,677.54,676.38,0.29569177]
[1738226229592,0.27147254,677.53,676.38,0.29569177]
[1738226231196,0.27147584,677.52,676.38,0.29569177]
[1738226231395,0.27147584,677.53,676.38,0.29569177]
[1738226231595,0.27147584,677.52,676.38,0.29569177]
[1738226231895,0.27147584,677.51,676.38,0.29569177]
[1738226232095,0.27147584,677.53,676.38,0.29569177]
[1738226232296,0.27147584,677.52,676.38,0.29569177]
[1738226232595,0.27147584,677.51,676.38,0.29569177]
[1738226232796,0.27147584,677.53,676.38,0.29569177]
[1738226232996,0.27147584,677.52,676.38,0.29569177]
[1738226233191,0.27147584,677.53,676.38,0.29569177]
[1738226234599,0.29518552,677.54,676.38,0.29569177]
[1738226234899,0.27147852,677.53,676.38,0.29569177]
[1738226235700,0.29518552,677.54,676.38,0.29569177]
[1738226235997,0.27147156,677.53,676.38,0.29569177]
[1738226237899,0.29518552,677.54,676.38,0.29569177]
[1738226238102,0.27146119,677.53,676.38,0.29569177]
[1738226239700,0.27146087,677.52,676.38,0.29569177]
[1738226239894,0.27146087,677.51,676.38,0.29569177]
[1738226240093,1.10605108,677.47,676.38,0.29569177]
[1738226240304,0.27146087,677.46,676.38,0.29569177]
[1738226241201,1.10605108,677.47,676.38,0.29569177]
[1738226241400,0.27146448,677.46,676.38,0.29569177]
[1738226243502,1.10605108,677.25,676.38,0.29569177]
[1738226245799,1.10605108,677.2,676.38,0.29569177]
[1738226248208,1.10605108,677.24,676.38,0.29569177]
[1738226251012,1.10605108,677.27,676.38,0.29569177]
[1738226253312,1.10605108,677.28,676.38,0.29569177]
[1738226258815,0.27148234,677.27,676.38,0.29569177]
[1738226259217,1.10605108,677.22,676.38,0.29569177]
[1738226259516,0.27148368,677.21,676.38,0.29569177]
[1738226261718,1.10605108,677.12,676.38,0.29569177]
[1738226264827,1.10605108,677.13,676.38,0.29569177]
[1738226267722,1.10605108,677.15,676.38,0.29569177]
[1738226271520,1.10605108,677.17,676.38,0.29569177]
[1738226274229,1.10605108,677.25,676.38,0.29569177]
[1738226278230,1.10605108,677.23,676.38,0.29569177]
[1738226282031,1.10605108,677.27,676.38,0.29569177]
[1738226285932,1.10605108,677.24,676.38,0.29569177]
[1738226287930,1.10605108,677.24,676.39,0.25856735]
[1738226288636,1.10605108,677.24,676.38,0.29569177]
[1738226289033,1.10605108,677.25,676.38,0.29569177]
[1738226291540,1.10605108,677.27,676.38,0.29569177]
[1738226298643,1.10605108,677.27,676.39,0.25857147]
[1738226299643,1.10605108,677.27,676.38,0.29569177]
[1738226300744,0.76495302,677.53,676.38,1.39999584]
[1738226300745,1.10605108,677.23,676.38,1.39999584]
[1738226301837,1.10605108,677.23,676.39,0.25855016]
[1738226304141,1.10605108,677.28,676.39,0.25855016]
[1738226304346,1.10605108,677.28,676.38,1.39999584]
[1738226306049,1.10605108,677.28,676.39,0.25848834]
[1738226306850,1.10605108,677.34,676.38,0.29569177]
[1738226307049,1.10605108,677.34,676.39,0.25848988]
[1738226307245,1.10605108,677.34,676.38,0.29569177]
[1738226309244,1.10605108,677.34,676.39,0.25850465]
[1738226309448,1.10605108,677.34,676.38,0.29569177]
[1738226309748,1.10605108,677.34,676.39,0.25849983]
[1738226309947,1.10605108,677.38,676.38,0.29569177]
[1738226310145,1.10605108,677.38,676.39,0.25850509]
[1738226312949,1.10605108,677.38,676.38,0.29569177]
[1738226313953,1.10605108,677.37,676.38,1.39999584]
[1738226316955,1.10605108,677.45,676.38,0.29569177]
[1738226319959,1.10605108,677.44,676.38,0.29569177]
[1738226322659,1.10605108,677.38,676.38,0.29569177]
[1738226325257,0.27145751,677.37,676.38,0.29569177]
[1738226326163,1.10605108,677.37,676.38,0.29569177]
[1738226327558,0.27145452,677.36,676.38,0.29569177]
[1738226328367,1.10605108,677.37,676.38,0.29569177]
[1738226329063,1.10605108,677.32,676.38,0.29569177]
[1738226329262,1.10605108,677.32,676.39,0.25858652]
[1738226330067,1.10605108,677.32,676.38,0.29569177]
[1738226330571,1.10605108,677.32,676.35,1.54218861]
[1738226330868,1.10605108,677.32,676.36,0.25858723]
[1738226331264,0.27144458,677.31,676.36,0.25858723]
[1738226332165,1.10605108,677.29,676.36,0.25858723]